fUSD/lending_fUSD_20241230
["ID","MTS","AMOUNT","RATE_DAILY","PERIOD"]
[347175449,1735547751550,-1763.53,0.00014377,2]
[347175450,1735547751721,-1574.73,0.00014377,2]
[347175451,1735547751744,-150.99,0.00014378,2]
[347175452,1735547751765,-999.99,0.00014378,2]
[347175453,1735547751787,-8659.66,0.00014378,2]
[347175454,1735547751811,-150.99,0.00014378,2]
[347175455,1735547751835,-299.99,0.00014378,2]
[347175456,1735547751859,-1549.64,0.00014378,2]
[347175457,1735547751884,-947.26,0.00014399,2]
[347175458,1735547751907,-500.0,0.00014399,2]
[347175459,1735547751930,-500.0,0.00014399,2]
[347175460,1735547751952,-751.62,0.00014399,2]
[347175461,1735547751976,-609.63,0.00014399,2]
[347175462,1735547751999,-825.13,0.00014399,2]
[347175463,1735547752021,-500.0,0.00014399,2]
[347175464,1735547752044,-500.0,0.00014399,2]
[347175465,1735547752069,-500.0,0.00014399,2]
[347175466,1735547752093,-500.0,0.00014399,2]
[347175467,1735547752116,-500.0,0.00014399,2]
[347175468,1735547752140,-500.0,0.00014399,2]
[347175469,1735547752162,-608.92,0.00014399,2]
[347175470,1735547752185,-834.71,0.00014399,2]
[347175471,1735547752207,-585.71,0.00014399,2]
[347175472,1735547752231,-858.14,0.00014399,2]
[347175473,1735547752254,-500.0,0.00014399,2]
[347175474,1735547752280,-500.0,0.00014399,2]
[347175475,1735547752303,-661.04,0.00014399,2]
[347175476,1735547752327,-523.71,0.00014399,2]
[347175477,1735547752351,-2877.99,0.00014399,2]
[347175478,1735547752373,-1107.7,0.00014399,2]
[347175479,1735547752397,-1010.46,0.00014399,2]
[347175480,1735547752420,-500.0,0.00014399,2]
[347175481,1735547752444,-2158.68,0.00014399,2]
[347175482,1735547752467,-1053.43,0.00014399,2]
[347175483,1735547752492,-500.0,0.00014399,2]
[347175484,1735547752514,-1284.3,0.00014399,2]
[347175485,1735547752535,-1522.8,0.00014399,2]
[347175486,1735547752557,-500.0,0.00014399,2]
[347175487,1735547752581,-2116.44,0.00014399,2]
[347175488,1735547752605,-500.0,0.00014399,2]
[347175489,1735547752645,-500.0,0.00014399,2]
[347175490,1735547752691,-790.4,0.00014399,2]
[347175491,1735547752738,-1666.32,0.00014399,2]
[347175492,1735547752782,-698.93,0.00014399,2]
[347175493,1735547752826,-1003.89,0.00014399,2]
[347175494,1735547752854,-1526.5,0.00014399,2]
[347175495,1735547752876,-889.91,0.00014399,2]
[347175496,1735547752899,-549.05,0.00014399,2]
[347175497,1735547752921,-500.0,0.00014399,2]
[347175498,1735547752942,-1000.0,0.00014399,2]
[347175499,1735547752963,-814.8,0.00014399,2]
[347175500,1735547752984,-1293.71,0.00014399,2]
[347175501,1735547753006,-500.0,0.00014399,2]
[347175502,1735547753028,-629.36,0.00014399,2]
[347175503,1735547753049,-1607.75,0.00014399,2]
[347175504,1735547753071,-745.12,0.00014399,2]
[347175505,1735547753093,-1536.66,0.00014399,2]
[347175506,1735547753114,-503.57,0.00014399,2]
[347175507,1735547753140,-500.0,0.00014399,2]
[347175508,1735547753161,-500.0,0.00014399,2]
[347175509,1735547753183,-500.0,0.00014399,2]
[347175510,1735547753205,-500.0,0.00014399,2]
[347175511,1735547753227,-699.09,0.00014399,2]
[347175512,1735547753249,-90728.40847586,0.000144,2]
[347175513,1735547753271,-5000.0,0.000144,2]
[347175514,1735547753292,-286.0154,0.000144,2]
[347175515,1735547753313,-3126.80561766,0.000144,2]
[347175516,1735547753336,-32221.0,0.00014466,2]
[347175517,1735547753358,-800.0,0.00014493,2]
[347175518,1735547753380,-270.48780477,0.00014495,2]
[347175519,1735547753404,-500.0,0.00014498,2]
[347175520,1735547753427,-796.08,0.00014498,2]
[347175521,1735547753449,-500.0,0.00014498,2]
[347175522,1735547753473,-500.0,0.00014498,2]
[347175523,1735547753495,-500.0,0.00014498,2]
[347175524,1735547753518,-500.0,0.00014498,2]
[347175525,1735547753541,-524.47,0.00014498,2]
[347175526,1735547753565,-500.0,0.00014498,2]
[347175527,1735547753586,-500.0,0.00014498,2]
[347175528,1735547753608,-500.0,0.00014498,2]
[347175529,1735547753630,-500.0,0.00014498,2]
[347175530,1735547753652,-500.0,0.00014498,2]
[347175531,1735547753675,-500.0,0.00014498,2]
[347175532,1735547753699,-500.0,0.00014498,2]
[347175533,1735547753722,-503.77353724,0.00014498,2]
[347175534,1735547753744,-500.0,0.00014498,2]
[347175535,1735547753766,-500.0,0.00014498,2]
[347175536,1735547753789,-500.0,0.00014498,2]
[347175537,1735547753811,-500.0,0.00014498,2]
[347175538,1735547753836,-500.0,0.00014498,2]
[347175539,1735547753857,-505.70076653,0.00014498,2]
[347175540,1735547753882,-500.0,0.00014498,2]
[347175541,1735547753903,-166.07673929,0.00014498,2]
[347175542,1735547753926,-500.0,0.00014498,2]
[347175543,1735547753948,-567.41284259,0.00014498,2]
[347175544,1735547753969,-500.0,0.00014498,2]
[347175545,1735547753992,-500.0,0.00014498,2]
[347175546,1735547754015,-500.0,0.00014498,2]
[347175547,1735547754036,-500.0,0.00014498,2]
[347175548,1735547754058,-500.0,0.00014498,2]
[347175549,1735547754078,-221986.18544083,0.00014498,2]
[347175550,1735547754100,-500.0,0.00014498,2]
[347175551,1735547754121,-53220.54874093,0.00014498,2]
[347175552,1735547754145,-500.0,0.00014498,2]
[347175553,1735547754167,-500.0,0.00014498,2]
[347175554,1735547754189,-500.0,0.00014498,2]
[347175555,1735547754211,-254118.89065094,0.00014498,2]
[347175556,1735547754234,-486684.1818635,0.00014498,2]
[347175557,1735547754255,-525.22,0.00014498,2]
[347175558,1735547754277,-257781.8944082,0.00014498,2]
[347175559,1735547754303,-500.0,0.00014499,2]
[347175560,1735547754326,-929.37,0.00014499,2]
[347175561,1735547754349,-500.0,0.00014499,2]
[347175562,1735547754372,-3771.54,0.00014499,2]
[347175563,1735547754395,-500.0,0.00014499,2]
[347175564,1735547754568,-1663.24,0.00014499,2]
[347175565,1735547754594,-2010.38,0.00014499,2]
[347175566,1735547754617,-1982.13,0.00014499,2]
[347175567,1735547754641,-1675.06,0.00014499,2]
[347175568,1735547754664,-500.0,0.00014499,2]
[347175569,1735547754688,-500.0,0.00014499,2]
[347175570,1735547754712,-1242.44,0.00014499,2]
[347175571,1735547754737,-736.21,0.00014499,2]
[347175572,1735547754761,-1129.12,0.00014499,2]
[347175573,1735547754789,-973.32,0.00014499,2]
[347175574,1735547754813,-1254.03,0.00014499,2]
[347175575,1735547754838,-500.0,0.00014499,2]
[347175576,1735547754860,-1063.55,0.00014499,2]
[347175577,1735547754882,-10756.4,0.00014499,2]
[347175578,1735547754904,-2801.45786115,0.000145,2]
[347175579,1735547754930,-1154556.94783151,0.000145,2]
[347175580,1735547754952,-18098843.65802099,0.000145,4]
[347175581,1735547986745,419.0,0.00011536,2]
[347175582,1735548181177,292.88,0.00010137,2]
[347175584,1735548333704,250.0,0.00012707,2]
[347175585,1735548354139,-150.0,0.00013044,2]
[347175586,1735548354159,-150.0,0.00013044,2]
[347175587,1735548354181,-150.0,0.00013044,2]
[347175588,1735548354201,-150.18295905,0.00013044,2]
[347175589,1735548354221,-150.0,0.00013044,2]
[347175590,1735548354240,-150.0,0.00013044,2]
[347175591,1735548354262,-0.65054505,0.00013107,2]
[347175592,1735548419771,169.52057872,0.0002,120]
[347175593,1735548440101,-150.0,0.00013044,2]
[347175594,1735548440122,-149.34945495,0.00013107,2]
[347175595,1735548440142,-187.08266664,0.00013123,2]
[347175596,1735548453103,-684.30149836,0.00013123,2]
[347175598,1735548517845,327.49,0.00012691,2]
[347175601,1735548553141,23900.0,0.00012696,2]
[347175602,1735548555097,-2760.495835,0.00013123,2]
[347175603,1735548555119,-150.0,0.00013124,2]
[347175604,1735548555140,-150.0,0.0001317,2]
[347175605,1735548555163,-150.0,0.00013176,2]
[347175606,1735548555183,-150.0,0.00013205,2]
[347175607,1735548555205,-1000.0,0.00013225,2]
[347175608,1735548555227,-150.0,0.00013233,2]
[347175609,1735548555248,-150.0,0.00013285,2]
[347175610,1735548555269,-150.0,0.00013296,2]
[347175611,1735548555292,-150.0,0.00013307,2]
[347175612,1735548555313,-250.0,0.00013343,2]
[347175613,1735548555334,-150.0,0.00013359,2]
[347175614,1735548555354,-150.0,0.00013366,2]
[347175615,1735548555375,-150.0,0.00013422,2]
[347175616,1735548555395,-150.0,0.00013439,2]
[347175617,1735548555416,-150.0,0.00013446,2]
[347175618,1735548555438,-150.0,0.00013485,2]
[347175619,1735548555459,-1758.25117359,0.00013487,2]
[347175620,1735548555487,-2659.82882641,0.00013487,2]
[347175621,1735548555509,-151.61,0.00013487,2]
[347175628,1735548614147,150.0,0.00012863,2]
[347175635,1735548631676,-478.93,0.00013504,2]
[347175636,1735548631685,-150.0,0.00013527,2]
[347175637,1735548631695,-150.0,0.00013527,2]
[347175638,1735548631705,-150.0,0.00013534,2]
[347175639,1735548631714,-150.0,0.00013548,2]
[347175640,1735548631723,-301.73,0.0001355,2]
[347175641,1735548631733,-150.0,0.00013571,2]
[347175642,1735548631742,-150.0,0.00013607,2]
[347175643,1735548631751,-150.0,0.00013611,2]
[347175644,1735548631761,-150.0,0.00013674,2]
[347175645,1735548631770,-150.0,0.00013688,2]
[347175646,1735548631779,-150.99,0.00013699,2]
[347175647,1735548631788,-150.0,0.00013703,2]
[347175648,1735548631798,-437.44,0.00013713,2]
[347175649,1735548631808,-771.32,0.00013713,2]
[347175650,1735548631817,-437.44,0.00013713,2]
[347175651,1735548631827,-771.32,0.00013713,2]
[347175652,1735548631836,-437.44,0.00013713,2]
[347175653,1735548631846,-771.32,0.00013713,2]
[347175654,1735548631855,-771.32,0.00013713,2]
[347175655,1735548631864,-150.0,0.00013737,2]
[347175656,1735548631873,-150.0,0.00013768,2]
[347175657,1735548631883,-419.0,0.000138,2]
[347175658,1735548631892,-437.44,0.000138,2]
[347175659,1735548631902,-632.95589433,0.000138,2]
[347175660,1735548631913,-1661.47568001,0.000138,2]
[347175661,1735548631930,-1367.58275185,0.000138,2]
[347175662,1735548631953,-10330.0,0.000138,2]
[347175663,1735548631979,-6723.73996979,0.000138,2]
[347175664,1735548631988,-150.0,0.000138,2]
[347175665,1735548631997,-150.0,0.00013834,2]
[347175666,1735548632006,-150.0,0.00013849,2]
[347175667,1735548632015,-150.0,0.0001385,2]
[347175668,1735548632024,-150.0,0.00013855,2]
[347175669,1735548632034,-150.0,0.00013863,2]
[347175670,1735548632043,-4363.86003021,0.00013875,2]
[347175671,1735548632055,-4381.09084303,0.00013875,2]
[347175745,1735548637625,-2920.5,0.00013875,2]
[347175746,1735548637636,-173.54912676,0.00013875,2]
[347175747,1735548637645,-188.56524687,0.000139,2]
[347175748,1735548637655,-150.0,0.00013914,2]
[347175749,1735548637664,-150.0,0.00013926,2]
[347175750,1735548637674,-150.0,0.0001393,2]
[347175751,1735548637683,-200.0,0.00013953,2]
[347175752,1735548637692,-188.56524679,0.00013956,2]
[347175753,1735548637702,-150.0,0.00013964,2]
[347175754,1735548637711,-150.0,0.00013966,2]
[347175755,1735548637720,-150.0,0.00013989,2]
[347175756,1735548637729,-58264.09744813,0.00014,2]
[347175757,1735548637740,-3684.35248828,0.00014,2]
[347175758,1735548637751,-1595.15396159,0.00014,2]
[347175759,1735548637769,-39246.70752771,0.00014,2]
[347175760,1735548637781,-630.76,0.00014,2]
[347175761,1735548637807,-8209.09879246,0.00014,2]
[347175762,1735548637913,-44672.82978183,0.00014,2]
[347175763,1735548637922,-150.0,0.00014007,2]
[347175764,1735548637931,-150.0,0.0001401,2]
[347175765,1735548637941,-150.0,0.0001401,2]
[347175766,1735548637950,-188.56524679,0.00014011,2]
[347175767,1735548637959,-3829.59,0.00014014,2]
[347175768,1735548637968,-185.963,0.00014014,2]
[347175769,1735548637977,-150.0,0.00014049,2]
[347175770,1735548637986,-150.0,0.00014052,2]
[347175771,1735548637995,-188.56524679,0.00014067,2]
[347175772,1735548638005,-150.0,0.00014067,2]
[347175773,1735548638014,-150.0,0.00014079,2]
[347175774,1735548638023,-150.0,0.00014091,2]
[347175775,1735548638032,-150.0,0.00014093,2]
[347175776,1735548638041,-150.0,0.00014098,2]
[347175777,1735548638050,-771.32,0.000141,2]
[347175778,1735548638059,-437.44,0.000141,2]
[347175779,1735548638068,-437.44,0.000141,2]
[347175780,1735548638077,-1554.62,0.000141,2]
[347175781,1735548638086,-150.0,0.00014115,2]
[347175782,1735548638095,-188.56524679,0.00014122,2]
[347175783,1735548638107,-429.34778484,0.00014137,2]
[347175784,1735548638116,-150.0,0.00014144,2]
[347175785,1735548638125,-150.0,0.00014171,2]
[347175786,1735548638134,-188.56524679,0.00014178,2]
[347175787,1735548638143,-150.0,0.00014178,2]
[347175788,1735548638152,-5000.0,0.00014199,2]
[347175789,1735548638161,-1911.5577636,0.00014199,2]
[347175790,1735548638171,-1911.55776359,0.00014221,2]
[347175791,1735548638180,-150.0,0.0001423,2]
[347175793,1735548638190,-188.56524679,0.00014233,2]
[347175795,1735548638198,-150.0,0.00014241,2]
[347175797,1735548638207,-1911.55776359,0.00014244,2]
[347175799,1735548638216,-491.44,0.00014245,2]
[347175800,1735548638225,-150.0,0.00014252,2]
[347175802,1735548638234,-501.22,0.00014259,2]
[347175804,1735548638243,-1911.55776359,0.00014266,2]
[347175806,1735548638251,-247.16041938,0.00014276,2]
[347175808,1735548638260,-327.49,0.00014277,2]
[347175810,1735548638270,-496.43,0.00014279,2]
[347175813,1735548638279,-495.94,0.00014279,2]
[347175815,1735548638288,-497.47,0.00014279,2]
[347175817,1735548638297,-501.58,0.00014279,2]
[347175819,1735548638306,-496.52,0.00014279,2]
[347175821,1735548638314,-507.98,0.00014279,2]
[347175823,1735548638323,-333.123017,0.00014288,2]
[347175825,1735548638332,-333.123017,0.00014288,3]
[347175827,1735548638342,-167.123017,0.00014288,2]
[347175829,1735548638351,-1911.55776359,0.00014288,2]
[347175831,1735548638360,-188.56524679,0.00014289,2]
[347175833,1735548638369,-247.16041934,0.00014297,2]
[347175835,1735548638378,-818.23,0.00014297,2]
[347175837,1735548638387,-500.0,0.00014297,2]
[347175839,1735548638396,-1034.22,0.00014297,2]
[347175841,1735548638405,-1425.18,0.00014297,2]
[347175843,1735548638414,-1091.59,0.00014297,2]
[347175845,1735548638423,-3827.77,0.00014297,2]
[347175847,1735548638432,-1356.97,0.00014297,2]
[347175849,1735548638442,-1683.0,0.00014297,2]
[347175851,1735548638451,-500.0,0.00014297,2]
[347175853,1735548638460,-1163.27,0.00014297,2]
[347175855,1735548638470,-2145.58,0.00014297,2]
[347175857,1735548638479,-609.47,0.00014297,2]
[347175859,1735548638488,-1970.29,0.00014297,2]
[347175861,1735548638497,-1727.7,0.00014297,2]
[347175863,1735548638506,-1757.59,0.00014297,2]
[347175865,1735548638515,-830.13,0.00014297,2]
[347175867,1735548638524,-1056.26,0.00014297,2]
[347175869,1735548638533,-500.0,0.00014297,2]
[347175871,1735548638543,-3617.01,0.00014297,2]
[347175873,1735548638552,-500.0,0.00014297,2]
[347175875,1735548638560,-500.0,0.00014297,2]
[347175877,1735548638569,-500.0,0.00014297,2]
[347175879,1735548638578,-738.88,0.00014297,2]
[347175881,1735548638587,-874.85,0.00014297,2]
[347175883,1735548638596,-500.0,0.00014297,2]
[347175885,1735548638605,-1188.53,0.00014297,2]
[347175887,1735548638615,-551.25,0.00014297,2]
[347175889,1735548638624,-618.26,0.00014297,2]
[347175891,1735548638634,-796.82,0.00014297,2]
[347175893,1735548638643,-500.0,0.00014297,2]
[347175895,1735548638651,-968.69,0.00014297,2]
[347175897,1735548638661,-506.42567664,0.00014297,2]
[347175899,1735548638670,-500.0,0.00014297,2]
[347175901,1735548638679,-333.123017,0.00014298,4]
[347175903,1735548638689,-333.123017,0.00014298,3]
[347175905,1735548638698,-333.123017,0.00014298,2]
[347175907,1735548638707,-500.0,0.00014298,2]
[347175908,1735548638717,-500.0,0.00014298,2]
[347175910,1735548638726,-500.0,0.00014298,2]
[347175912,1735548638735,-500.0,0.00014298,2]
[347175914,1735548638745,-500.0,0.00014298,2]
[347175916,1735548638754,-489.31811637,0.00014298,2]
[347175918,1735548638763,-500.0,0.00014298,2]
[347175920,1735548638772,-513.4416828,0.00014298,2]
[347175922,1735548638781,-500.0,0.00014298,2]
[347175924,1735548638790,-500.0,0.00014298,2]
[347175926,1735548638799,-500.0,0.00014298,2]
[347175928,1735548638808,-291.09184009,0.00014298,2]
[347175930,1735548638817,-500.0,0.00014298,2]
[347175933,1735548638827,-500.0,0.00014298,2]
[347175935,1735548638836,-500.0,0.00014298,2]
[347175937,1735548638845,-500.0,0.00014298,2]
[347175939,1735548638854,-500.0,0.00014298,2]
[347175940,1735548638863,-500.0,0.00014298,2]
[347175942,1735548638872,-500.0,0.00014298,2]
[347175944,1735548638881,-180.73280872,0.00014298,2]
[347175946,1735548638891,-500.0,0.00014298,2]
[347175948,1735548638900,-500.0,0.00014298,2]
[347175950,1735548638909,-500.0,0.00014298,2]
[347175952,1735548638918,-500.0,0.00014298,2]
[347175954,1735548638927,-500.0,0.00014298,2]
[347175956,1735548638936,-500.0,0.00014298,2]
[347175958,1735548638945,-500.0,0.00014298,2]
[347175960,1735548638954,-500.0,0.00014298,2]
[347175962,1735548638963,-500.0,0.00014298,2]
[347175964,1735548638972,-500.0,0.00014298,2]
[347175966,1735548638981,-2147.26,0.00014298,2]
[347175968,1735548638990,-500.0,0.00014298,2]
[347175970,1735548638999,-421.4814391,0.00014298,2]
[347175972,1735548639009,-500.0,0.00014298,2]
[347175974,1735548639017,-513.38887217,0.00014298,2]
[347175976,1735548639026,-1307.51,0.00014298,2]
[347175978,1735548639035,-500.0,0.00014298,2]
[347175980,1735548639044,-500.0,0.00014298,2]
[347175982,1735548639053,-500.0,0.00014298,2]
[347175984,1735548639062,-500.0,0.00014298,2]
[347175986,1735548639072,-500.0,0.00014298,2]
[347175988,1735548639081,-500.0,0.00014298,2]
[347175990,1735548639090,-500.0,0.00014298,2]
[347175992,1735548639101,-500.0,0.00014298,2]
[347175994,1735548639114,-156.141841,0.00014298,2]
[347175996,1735548639123,-155.399952,0.00014298,2]
[347175998,1735548639132,-939.274169,0.00014298,2]
[347176000,1735548639141,-500.0,0.00014298,2]
[347176002,1735548639150,-2479.25,0.00014298,2]
[347176004,1735548639159,-500.0,0.00014298,2]
[347176006,1735548639168,-1201.78,0.00014298,2]
[347176008,1735548639177,-500.0,0.00014298,2]
[347176010,1735548639186,-500.0,0.00014298,2]
[347176012,1735548639196,-500.0,0.00014298,2]
[347176014,1735548639205,-878.459687,0.00014298,2]
[347176016,1735548639215,-900.08,0.00014298,2]
[347176018,1735548639224,-500.0,0.00014298,2]
[347176020,1735548639233,-500.0,0.00014298,2]
[347176022,1735548639242,-500.0,0.00014298,2]
[347176024,1735548639252,-500.0,0.00014298,2]
[347176026,1735548639261,-500.0,0.00014298,2]
[347176028,1735548639270,-500.0,0.00014298,2]
[347176030,1735548639279,-500.0,0.00014298,2]
[347176032,1735548639288,-500.0,0.00014298,2]
[347176034,1735548639297,-2451.44,0.00014298,2]
[347176036,1735548639305,-1129.82,0.00014298,2]
[347176038,1735548639314,-500.0,0.00014298,2]
[347176040,1735548639323,-500.0,0.00014298,2]
[347176042,1735548639332,-500.0,0.00014298,2]
[347176044,1735548639341,-10338.71,0.00014298,2]
[347176046,1735548639351,-500.0,0.00014298,2]
[347176048,1735548639360,-500.0,0.00014298,2]
[347176050,1735548639368,-500.0,0.00014298,2]
[347176052,1735548639378,-500.0,0.00014298,2]
[347176054,1735548639387,-500.0,0.00014298,2]
[347176056,1735548639395,-500.0,0.00014298,2]
[347176058,1735548639404,-346.9897583,0.00014298,2]
[347176060,1735548639414,-500.0,0.00014298,2]
[347176062,1735548639423,-502.45263553,0.00014298,2]
[347176064,1735548639432,-500.0,0.00014298,2]
[347176066,1735548639441,-854.73,0.00014298,2]
[347176068,1735548639451,-500.0,0.00014298,2]
[347176070,1735548639460,-500.0,0.00014298,2]
[347176072,1735548639469,-500.0,0.00014298,2]
[347176074,1735548639479,-1346.48,0.00014298,2]
[347176076,1735548639487,-500.0,0.00014298,2]
[347176078,1735548639496,-508.00768193,0.00014298,2]
[347176080,1735548639505,-1744.09,0.00014298,2]
[347176082,1735548639514,-500.0,0.00014298,2]
[347176084,1735548639524,-1752.12,0.00014298,2]
[347176086,1735548639533,-500.0,0.00014298,2]
[347176088,1735548639542,-500.0,0.00014298,2]
[347176090,1735548639551,-2527.84,0.00014298,2]
[347176092,1735548639561,-500.0,0.00014298,2]
[347176094,1735548639571,-500.0,0.00014298,2]
[347176114,1735548639734,-504.29059647,0.00014298,2]
[347176116,1735548639744,-1927.68,0.00014298,2]
[347176118,1735548639753,-500.0,0.00014298,2]
[347176120,1735548639762,-500.0,0.00014298,2]
[347176122,1735548639771,-960.52,0.00014298,2]
[347176124,1735548639780,-500.0,0.00014298,2]
[347176126,1735548639789,-500.0,0.00014298,2]
[347176128,1735548639798,-500.0,0.00014298,2]
[347176130,1735548639806,-500.0,0.00014298,2]
[347176131,1735548639816,-500.0,0.00014298,2]
[347176133,1735548639825,-500.0,0.00014298,2]
[347176135,1735548639834,-3498.83,0.00014298,2]
[347176137,1735548639844,-1680.43,0.00014298,2]
[347176139,1735548639852,-500.0,0.00014298,2]
[347176141,1735548639861,-500.0,0.00014298,2]
[347176143,1735548639870,-2737.51,0.00014298,2]
[347176145,1735548639879,-500.0,0.00014298,2]
[347176147,1735548639888,-500.0,0.00014298,2]
[347176149,1735548639898,-500.0,0.00014298,2]
[347176151,1735548639907,-9100.26,0.00014298,2]
[347176153,1735548639916,-5097.39,0.00014298,2]
[347176155,1735548639925,-229.75734729,0.00014298,2]
[347176157,1735548639935,-500.0,0.00014298,2]
[347176159,1735548639943,-500.0,0.00014298,2]
[347176160,1735548639952,-500.0,0.00014298,2]
[347176161,1735548639962,-500.0,0.00014298,2]
[347176162,1735548639970,-500.0,0.00014298,2]
[347176164,1735548639979,-500.0,0.00014298,2]
[347176166,1735548639988,-500.0,0.00014298,2]
[347176168,1735548639997,-5987.88,0.00014298,2]
[347176169,1735548640007,-500.0,0.00014298,2]
[347176171,1735548640015,-500.0,0.00014298,2]
[347176173,1735548640025,-500.0,0.00014298,2]
[347176174,1735548640033,-500.0,0.00014298,2]
[347176175,1735548640042,-500.0,0.00014298,2]
[347176176,1735548640051,-853.18,0.00014298,2]
[347176177,1735548640060,-500.0,0.00014298,2]
[347176178,1735548640069,-500.0,0.00014298,2]
[347176179,1735548640079,-1037.14,0.00014298,2]
[347176180,1735548640088,-500.0,0.00014298,2]
[347176181,1735548640097,-500.0,0.00014298,2]
[347176182,1735548640110,-500.0,0.00014298,2]
[347176183,1735548640118,-503.57136886,0.00014298,2]
[347176184,1735548640127,-500.0,0.00014298,2]
[347176185,1735548640136,-500.0,0.00014298,2]
[347176186,1735548640146,-1942.99,0.00014298,2]
[347176187,1735548640155,-500.0,0.00014298,2]
[347176188,1735548640165,-500.0,0.00014298,2]
[347176189,1735548640174,-500.0,0.00014298,2]
[347176190,1735548640184,-3298.26,0.00014298,2]
[347176191,1735548640193,-500.0,0.00014298,2]
[347176192,1735548640202,-500.0,0.00014298,2]
[347176193,1735548640211,-500.0,0.00014298,2]
[347176194,1735548640220,-500.0,0.00014298,2]
[347176195,1735548640230,-2160.94,0.00014298,2]
[347176196,1735548640239,-6856.26,0.00014298,2]
[347176197,1735548640248,-500.0,0.00014298,2]
[347176198,1735548640256,-500.0,0.00014298,2]
[347176199,1735548640266,-750.83,0.00014298,2]
[347176200,1735548640275,-500.0,0.00014298,2]
[347176201,1735548640284,-500.0,0.00014298,2]
[347176202,1735548640293,-500.0,0.00014298,2]
[347176203,1735548640302,-500.0,0.00014298,2]
[347176204,1735548640311,-500.0,0.00014298,2]
[347176205,1735548640320,-500.0,0.00014298,2]
[347176206,1735548640329,-510.85330351,0.00014298,2]
[347176207,1735548640338,-500.0,0.00014298,2]
[347176208,1735548640347,-500.0,0.00014298,2]
[347176209,1735548640355,-1599.4,0.00014298,2]
[347176210,1735548640365,-383.41650932,0.00014298,2]
[347176211,1735548640388,-500.0,0.00014298,2]
[347176212,1735548640397,-500.0,0.00014298,2]
[347176213,1735548640406,-500.0,0.00014298,2]
[347176214,1735548640415,-2054.38,0.00014298,2]
[347176215,1735548640424,-514.23744994,0.00014298,2]
[347176216,1735548640433,-500.0,0.00014298,2]
[347176217,1735548640442,-504.71480694,0.00014298,2]
[347176218,1735548640451,-500.0,0.00014298,2]
[347176219,1735548640461,-500.0,0.00014298,2]
[347176220,1735548640470,-546.66146008,0.00014298,2]
[347176221,1735548640480,-1832.08,0.00014298,2]
[347176222,1735548640490,-1078.71733626,0.00014299,5]
[347176223,1735548640499,-586.18443852,0.00014299,2]
[347176224,1735548640508,-500.0,0.00014299,2]
[347176225,1735548640519,-500.0,0.00014299,2]
[347176226,1735548640529,-871.56,0.00014299,2]
[347176227,1735548640538,-625.99749933,0.00014299,2]
[347176228,1735548640548,-500.0,0.00014299,2]
[347176229,1735548640558,-501.53,0.00014299,2]
[347176230,1735548640567,-500.0,0.00014299,2]
[347176231,1735548640576,-500.0,0.00014299,2]
[347176232,1735548640586,-500.0,0.00014299,2]
[347176233,1735548640595,-1056.96,0.00014299,2]
[347176234,1735548640605,-500.0,0.00014299,2]